fUSD/lending_fUSD_20250204
["ID","MTS","AMOUNT","RATE_DAILY","PERIOD"]
[351584829,1738647041989,-500.0,8.797e-05,2]
[351584830,1738647041998,-502.45588604,8.797e-05,2]
[351584831,1738647042008,-1691.32,8.797e-05,2]
[351584832,1738647042017,-1033.4,8.797e-05,2]
[351584833,1738647042026,-500.0,8.797e-05,2]
[351584834,1738647042036,-408.73422175,8.797e-05,2]
[351584835,1738647042046,-500.0,8.797e-05,2]
[351584836,1738647042055,-500.0,8.797e-05,2]
[351584837,1738647042065,-2910.88,8.797e-05,2]
[351584838,1738647042075,-500.0,8.797e-05,2]
[351584839,1738647042084,-420.88747049,8.797e-05,2]
[351584840,1738647042094,-2990.61,8.797e-05,2]
[351584841,1738647042103,-2630.27,8.797e-05,2]
[351584842,1738647042112,-500.0,8.797e-05,2]
[351584843,1738647042125,-500.0,8.797e-05,2]
[351584844,1738647042135,-2223.51,8.797e-05,2]
[351584845,1738647042144,-2250.08,8.797e-05,2]
[351584846,1738647042154,-500.0,8.797e-05,2]
[351584847,1738647042163,-1302.19,8.797e-05,2]
[351584848,1738647042172,-1734.38,8.797e-05,2]
[351584849,1738647042182,-608.74667276,8.797e-05,2]
[351584850,1738647042194,-2644.66332724,8.797e-05,2]
[351584851,1738647042204,-556.75,8.797e-05,2]
[351584852,1738647042213,-500.0,8.797e-05,2]
[351584853,1738647042223,-500.0,8.797e-05,2]
[351584854,1738647042233,-500.0,8.797e-05,2]
[351584855,1738647042243,-500.0,8.797e-05,2]
[351584856,1738647042252,-3625.26,8.797e-05,2]
[351584857,1738647042262,-501.39838325,8.797e-05,2]
[351584858,1738647042271,-843.39,8.797e-05,2]
[351584859,1738647042281,-151.0,8.797e-05,2]
[351584860,1738647042291,-2105.47,8.797e-05,2]
[351584861,1738647042300,-151.0,8.797e-05,2]
[351584862,1738647042309,-557.66802735,8.797e-05,2]
[351584863,1738647042319,-500.0,8.797e-05,2]
[351584864,1738647042328,-500.0,8.797e-05,2]
[351584865,1738647042337,-1405.63,8.797e-05,2]
[351584866,1738647042347,-701.84154955,8.797e-05,2]
[351584867,1738647042358,-484.99755518,8.797e-05,2]
[351584868,1738647042372,-2932.90089527,8.797e-05,2]
[351584869,1738647042381,-500.0,8.797e-05,2]
[351584870,1738647042391,-818.3,8.797e-05,2]
[351584871,1738647042401,-2176.63,8.797e-05,2]
[351584872,1738647042410,-500.0,8.797e-05,2]
[351584873,1738647042419,-3703.68,8.797e-05,2]
[351584874,1738647042429,-1044.33,8.797e-05,2]
[351584875,1738647042442,-773.16,8.797e-05,2]
[351584876,1738647042451,-561.31865678,8.797e-05,2]
[351584877,1738647042460,-954.3,8.797e-05,2]
[351584878,1738647042469,-500.0,8.797e-05,2]
[351584879,1738647042481,-500.0,8.797e-05,2]
[351584881,1738647042490,-500.0,8.797e-05,2]
[351584883,1738647042500,-519.62,8.797e-05,2]
[351584886,1738647042510,-500.0,8.797e-05,2]
[351584889,1738647042520,-500.0,8.797e-05,2]
[351584891,1738647042529,-500.0,8.797e-05,2]
[351584892,1738647042538,-500.0,8.797e-05,2]
[351584894,1738647042547,-500.0,8.797e-05,2]
[351584896,1738647042557,-2757.39,8.797e-05,2]
[351584898,1738647042566,-500.0,8.797e-05,2]
[351584899,1738647042575,-608.74790559,8.797e-05,2]
[351584900,1738647042584,-2241.22,8.797e-05,2]
[351584901,1738647042593,-500.0,8.797e-05,2]
[351584902,1738647042603,-500.0,8.797e-05,2]
[351584903,1738647042612,-1575.47,8.797e-05,2]
[351584905,1738647042625,-1688.68,8.797e-05,2]
[351584907,1738647042635,-3092.46,8.797e-05,2]
[351584909,1738647042645,-1586.69,8.797e-05,2]
[351584910,1738647042662,-704.26,8.797e-05,2]
[351584911,1738647042671,-2026.62,8.797e-05,2]
[351584912,1738647042681,-500.0,8.798e-05,2]
[351584913,1738647042691,-500.0,8.798e-05,2]
[351584914,1738647042701,-528.56,8.798e-05,2]
[351584915,1738647042711,-500.0,8.798e-05,2]
[351584916,1738647042721,-500.0,8.798e-05,2]
[351584917,1738647042730,-500.0,8.798e-05,2]
[351584918,1738647042740,-500.0,8.798e-05,2]
[351584919,1738647042750,-500.0,8.798e-05,2]
[351584920,1738647042759,-500.0,8.798e-05,2]
[351584921,1738647042769,-500.0,8.798e-05,2]
[351584922,1738647042779,-500.0,8.798e-05,2]
[351584923,1738647042788,-500.0,8.798e-05,2]
[351584924,1738647042797,-500.0,8.798e-05,2]
[351584925,1738647042807,-801.11,8.798e-05,2]
[351584926,1738647042817,-500.0,8.798e-05,2]
[351584927,1738647042826,-500.0,8.798e-05,2]
[351584928,1738647042836,-500.0,8.798e-05,2]
[351584929,1738647042846,-500.0,8.798e-05,2]
[351584930,1738647042855,-500.0,8.798e-05,2]
[351584931,1738647042865,-865.42,8.798e-05,2]
[351584932,1738647042879,-500.0,8.798e-05,2]
[351584933,1738647042888,-500.0,8.798e-05,2]
[351584934,1738647042900,-576.76,8.798e-05,2]
[351584935,1738647042910,-500.0,8.798e-05,2]
[351584936,1738647042919,-500.0,8.798e-05,2]
[351584937,1738647042929,-500.0,8.798e-05,2]
[351584938,1738647042938,-500.0,8.798e-05,2]
[351584939,1738647042948,-500.0,8.798e-05,2]
[351584940,1738647042957,-500.0,8.798e-05,2]
[351584941,1738647042966,-500.0,8.798e-05,2]
[351584942,1738647042976,-500.14773618,8.798e-05,2]
[351584943,1738647042986,-500.0,8.798e-05,2]
[351584944,1738647042996,-500.0,8.798e-05,2]
[351584945,1738647043005,-500.0,8.798e-05,2]
[351584946,1738647043014,-500.0,8.798e-05,2]
[351584947,1738647043024,-500.0,8.798e-05,2]
[351584948,1738647043034,-500.0,8.798e-05,2]
[351584949,1738647043044,-500.0,8.798e-05,2]
[351584950,1738647043053,-500.0,8.798e-05,2]
[351584951,1738647043063,-505.97521249,8.798e-05,2]
[351584952,1738647043073,-500.0,8.798e-05,2]
[351584953,1738647043084,-609.83,8.798e-05,2]
[351584954,1738647043093,-500.0,8.798e-05,2]
[351584956,1738647043103,-500.0,8.798e-05,2]
[351584959,1738647043112,-500.0,8.798e-05,2]
[351584962,1738647043128,-500.95493253,8.798e-05,2]
[351584964,1738647043137,-501.06557884,8.798e-05,2]
[351584966,1738647043146,-500.2635547,8.798e-05,2]
[351584968,1738647043155,-598.96005966,8.798e-05,2]
[351584973,1738647043186,-24.21764196,8.798e-05,2]
[351584975,1738647043196,-500.0,8.798e-05,2]
[351584977,1738647043206,-500.0,8.798e-05,2]
[351584979,1738647043215,-500.27568107,8.798e-05,2]
[351584980,1738647043225,-500.0,8.798e-05,2]
[351584981,1738647043235,-500.0,8.798e-05,2]
[351584982,1738647043244,-988.98,8.798e-05,2]
[351584983,1738647043254,-500.0,8.798e-05,2]
[351584984,1738647043264,-500.0,8.798e-05,2]
[351584985,1738647043273,-500.0,8.798e-05,2]
[351584986,1738647043283,-500.0,8.798e-05,2]
[351584987,1738647043292,-500.0,8.798e-05,2]
[351584988,1738647043302,-546.55,8.798e-05,2]
[351584989,1738647043312,-500.0,8.798e-05,2]
[351584990,1738647043322,-500.0,8.798e-05,2]
[351584991,1738647043331,-500.0,8.798e-05,2]
[351584992,1738647043340,-500.0,8.798e-05,2]
[351584993,1738647043350,-500.0,8.798e-05,2]
[351584994,1738647043360,-500.0,8.798e-05,2]
[351584995,1738647043375,-500.0,8.798e-05,2]
[351584996,1738647043385,-439.97657743,8.798e-05,2]
[351584997,1738647043398,-60.02342257,8.798e-05,2]
[351584998,1738647043408,-500.0,8.798e-05,2]
[351584999,1738647043418,-500.0,8.798e-05,2]
[351585000,1738647043428,-500.45947137,8.798e-05,2]
[351585001,1738647043443,-500.0,8.798e-05,2]
[351585002,1738647043453,-500.0,8.798e-05,2]
[351585003,1738647043464,-500.0,8.798e-05,2]
[351585004,1738647043475,-500.0,8.798e-05,2]
[351585005,1738647043486,-566.49,8.798e-05,2]
[351585006,1738647043496,-594.28,8.798e-05,2]
[351585007,1738647043506,-500.0,8.798e-05,2]
[351585008,1738647043517,-500.0,8.798e-05,2]
[351585009,1738647043528,-523.84424956,8.798e-05,2]
[351585010,1738647043537,-500.0,8.798e-05,2]
[351585011,1738647043546,-500.0,8.798e-05,2]
[351585012,1738647043556,-500.0,8.798e-05,2]
[351585013,1738647043565,-500.0,8.798e-05,2]
[351585014,1738647043575,-500.0,8.798e-05,2]
[351585015,1738647043584,-500.0,8.798e-05,2]
[351585016,1738647043594,-500.0,8.798e-05,2]
[351585017,1738647043604,-500.0,8.798e-05,2]
[351585018,1738647043826,-500.0,8.798e-05,2]
[351585019,1738647043836,-500.0,8.798e-05,2]
[351585020,1738647043846,-500.0,8.798e-05,2]
[351585021,1738647043855,-500.0,8.798e-05,2]
[351585022,1738647043865,-500.0,8.798e-05,2]
[351585023,1738647043877,-500.0,8.798e-05,2]
[351585024,1738647043887,-500.0,8.798e-05,2]
[351585025,1738647043897,-500.0,8.798e-05,2]
[351585026,1738647043907,-500.0,8.798e-05,2]
[351585027,1738647043917,-500.0,8.798e-05,2]
[351585028,1738647043927,-500.0,8.798e-05,2]
[351585029,1738647043937,-500.0,8.798e-05,2]
[351585030,1738647043946,-500.0,8.798e-05,2]
[351585031,1738647043956,-500.0,8.798e-05,2]
[351585032,1738647043966,-500.0,8.798e-05,2]
[351585033,1738647043975,-500.0,8.798e-05,2]
[351585034,1738647043984,-500.0,8.798e-05,2]
[351585035,1738647043992,-500.0,8.798e-05,2]
[351585036,1738647044001,-500.78149863,8.798e-05,2]
[351585037,1738647044010,-500.0,8.798e-05,2]
[351585038,1738647044020,-500.0,8.798e-05,2]
[351585039,1738647044029,-501.01329134,8.798e-05,2]
[351585040,1738647044038,-537.48,8.798e-05,2]
[351585041,1738647044047,-500.0,8.798e-05,2]
[351585042,1738647044056,-500.0,8.798e-05,2]
[351585043,1738647044065,-500.0,8.798e-05,2]
[351585044,1738647044074,-552.29,8.798e-05,2]
[351585045,1738647044083,-500.0,8.798e-05,2]
[351585046,1738647044092,-358.76892018,8.798e-05,2]
[351585047,1738647044111,-141.23107982,8.798e-05,2]
[351585048,1738647044122,-500.0,8.798e-05,2]
[351585049,1738647044131,-500.0,8.798e-05,2]
[351585050,1738647044141,-500.0,8.798e-05,2]
[351585051,1738647044150,-345.96892018,8.798e-05,2]
[351585052,1738647044162,-269.33162581,8.798e-05,2]
[351585053,1738647044174,-88.15945401,8.798e-05,2]
[351585054,1738647044183,-795.92,8.798e-05,2]
[351585055,1738647044193,-167.92054599,8.798e-05,2]
[351585056,1738647044686,-454.81028445,8.791e-05,2]
[351585057,1738647044706,-494.413181,8.791e-05,2]
[351585058,1738647044718,-1073.77653455,8.791e-05,2]
[351585059,1738647044729,-500.0,8.795e-05,2]
[351585060,1738647044738,-500.0,8.795e-05,2]
[351585061,1738647044749,-332.07945401,8.798e-05,2]
[351585062,1738647044758,-500.0,8.798e-05,2]
[351585063,1738647044767,-547.39,8.798e-05,2]
[351585064,1738647044777,-500.0,8.798e-05,2]
[351585065,1738647044786,-500.0,8.798e-05,2]
[351585066,1738647044795,-506.55887002,8.798e-05,2]
[351585067,1738647044805,-244.03202029,8.798e-05,2]
[351585068,1738647044814,-500.0,8.798e-05,2]
[351585069,1738647044824,-500.0,8.798e-05,2]
[351585070,1738647044835,-500.0,8.798e-05,2]
[351585071,1738647044846,-500.0,8.798e-05,2]
[351585072,1738647044857,-500.0,8.798e-05,2]
[351585073,1738647044868,-500.0,8.798e-05,2]
[351585074,1738647044886,-500.0,8.798e-05,2]
[351585075,1738647044897,-500.0,8.798e-05,2]
[351585076,1738647044908,-500.0,8.798e-05,2]
[351585077,1738647044918,-500.0,8.798e-05,2]
[351585078,1738647044928,-500.0,8.798e-05,2]
[351585079,1738647044939,-507.15670769,8.798e-05,2]
[351585080,1738647044950,-500.0,8.798e-05,2]
[351585081,1738647044961,-500.0,8.798e-05,2]
[351585082,1738647044972,-500.0,8.798e-05,2]
[351585083,1738647044983,-500.0,8.798e-05,2]
[351585084,1738647044994,-500.0,8.798e-05,2]
[351585085,1738647045005,-500.0,8.798e-05,2]
[351585086,1738647045016,-804.38,8.798e-05,2]
[351585087,1738647045026,-282.96807909,8.798e-05,2]
[351585088,1738647045043,-175.91621044,8.798e-05,2]
[351585089,1738647045053,-500.0,8.798e-05,2]
[351585090,1738647045064,-500.0,8.798e-05,2]
[351585091,1738647045074,-500.0,8.798e-05,2]
[351585092,1738647045085,-209.18248535,8.798e-05,2]
[351585093,1738647045194,-500.0,8.795e-05,2]
[351585094,1738647045206,-290.81751465,8.798e-05,2]
[351585095,1738647045216,-1681.51,8.798e-05,2]
[351585096,1738647045228,-193.87248535,8.798e-05,2]
[351585097,1738647045348,-310.54593527,8.798e-05,2]
[351585098,1738647045360,-106.43157938,8.798e-05,2]
[351585099,1738647045376,-500.0,8.798e-05,2]
[351585100,1738647045386,-85.46800562,8.798e-05,2]
[351585101,1738647045399,-414.53199438,8.798e-05,2]
[351585103,1738647045410,-500.0,8.798e-05,2]
[351585105,1738647045421,-500.0,8.798e-05,2]
[351585107,1738647045431,-500.0,8.798e-05,2]
[351585109,1738647045446,-500.0,8.798e-05,2]
[351585110,1738647045457,-501.83092107,8.798e-05,2]
[351585111,1738647045467,-500.0,8.798e-05,2]
[351585112,1738647045479,-500.0,8.798e-05,2]
[351585113,1738647045490,-500.0,8.798e-05,2]
[351585114,1738647045500,-1148.46,8.798e-05,2]
[351585116,1738647045510,-586.39,8.798e-05,2]
[351585118,1738647045520,-500.0,8.798e-05,2]
[351585119,1738647045530,-500.0,8.798e-05,2]
[351585120,1738647045542,-500.0,8.798e-05,2]
[351585121,1738647045552,-500.0,8.798e-05,2]
[351585122,1738647045562,-500.0,8.798e-05,2]
[351585123,1738647045572,-507.447226,8.798e-05,2]
[351585124,1738647045582,-611.78,8.798e-05,2]
[351585125,1738647045592,-158.167689,8.798e-05,2]
[351585126,1738647045602,-500.0,8.798e-05,2]
[351585127,1738647045612,-500.0,8.798e-05,2]
[351585128,1738647045626,-1112.14,8.798e-05,2]
[351585129,1738647045636,-500.0,8.798e-05,2]
[351585130,1738647045646,-500.29937418,8.798e-05,2]
[351585132,1738647045656,-500.91955833,8.798e-05,2]
[351585134,1738647045666,-500.0,8.798e-05,2]
[351585136,1738647045676,-753.65,8.798e-05,2]
[351585138,1738647045685,-500.0,8.798e-05,2]
[351585140,1738647045695,-500.0,8.798e-05,2]
[351585142,1738647045705,-500.0,8.798e-05,2]
[351585144,1738647045715,-645.35,8.798e-05,2]
[351585146,1738647045724,-500.0,8.798e-05,2]
[351585148,1738647045734,-500.0,8.798e-05,2]
[351585150,1738647045744,-150.0,8.798e-05,2]
[351585152,1738647045755,-500.0,8.798e-05,2]
[351585154,1738647045765,-500.0,8.798e-05,2]
[351585155,1738647045775,-501.76580302,8.798e-05,2]
[351585156,1738647045785,-500.0,8.798e-05,2]
[351585157,1738647045795,-642.80723092,8.798e-05,2]
[351585158,1738647045805,-500.0,8.798e-05,2]
[351585159,1738647045815,-500.0,8.798e-05,2]
[351585160,1738647045825,-500.0,8.798e-05,2]
[351585161,1738647045835,-500.0,8.798e-05,2]
[351585162,1738647045844,-531.02,8.798e-05,2]
[351585163,1738647045854,-502.3068838,8.798e-05,2]
[351585164,1738647045863,-596.22,8.798e-05,2]
[351585165,1738647045877,-500.0,8.798e-05,2]
[351585166,1738647045887,-500.0,8.798e-05,2]
[351585167,1738647045897,-512.73162566,8.798e-05,2]
[351585168,1738647045906,-500.0,8.798e-05,2]
[351585169,1738647045916,-524.29,8.798e-05,2]
[351585170,1738647045927,-500.0,8.798e-05,2]
[351585171,1738647045937,-502.26776107,8.798e-05,2]
[351585172,1738647045947,-500.0,8.798e-05,2]
[351585173,1738647045956,-500.3443046,8.798e-05,2]
[351585174,1738647045967,-500.0,8.798e-05,2]
[351585175,1738647045977,-500.0,8.798e-05,2]
[351585176,1738647045987,-503.96707382,8.798e-05,2]
[351585177,1738647045997,-500.0,8.798e-05,2]
[351585178,1738647046006,-1309.23,8.798e-05,2]
[351585179,1738647046016,-500.0,8.798e-05,2]
[351585180,1738647046025,-500.0,8.798e-05,2]
[351585181,1738647046035,-500.0,8.798e-05,2]
[351585182,1738647046045,-556.86,8.798e-05,2]
[351585183,1738647046055,-500.0,8.798e-05,2]
[351585184,1738647046065,-500.0,8.798e-05,2]
[351585185,1738647046075,-500.0,8.798e-05,2]
[351585186,1738647046085,-507.18212689,8.798e-05,2]
[351585187,1738647046095,-500.0,8.798e-05,2]
[351585188,1738647046106,-500.0,8.798e-05,2]
[351585189,1738647046115,-719.32,8.798e-05,2]
[351585190,1738647046130,-500.0,8.798e-05,2]
[351585191,1738647046140,-500.0,8.798e-05,2]
[351585192,1738647046151,-500.0,8.798e-05,2]
[351585193,1738647046163,-984.55,8.798e-05,2]
[351585194,1738647046173,-500.0,8.798e-05,2]
[351585195,1738647046183,-500.0,8.798e-05,2]
[351585196,1738647046192,-608.04,8.798e-05,2]
[351585197,1738647046201,-500.0,8.798e-05,2]
[351585198,1738647046210,-500.0,8.798e-05,2]
[351585199,1738647046219,-500.91908459,8.798e-05,2]
[351585200,1738647046228,-502.67658559,8.798e-05,2]
[351585201,1738647046237,-1076.42,8.798e-05,2]
[351585202,1738647046247,-500.0,8.798e-05,2]
[351585203,1738647046256,-500.0,8.798e-05,2]
[351585204,1738647046266,-500.0,8.798e-05,2]
[351585206,1738647046275,-500.0,8.798e-05,2]
[351585207,1738647046285,-500.0,8.798e-05,2]
[351585208,1738647046295,-698.34,8.798e-05,2]
[351585209,1738647046304,-500.0,8.798e-05,2]
[351585210,1738647046313,-500.0,8.798e-05,2]
[351585211,1738647046323,-500.0,8.798e-05,2]
[351585212,1738647046333,-500.0,8.798e-05,2]
[351585213,1738647046342,-500.0,8.798e-05,2]
[351585214,1738647046352,-500.0,8.798e-05,2]
[351585215,1738647046361,-500.0,8.798e-05,2]
[351585216,1738647046374,-500.63141093,8.798e-05,2]
[351585217,1738647046383,-500.0,8.798e-05,2]
[351585218,1738647046393,-500.0,8.798e-05,2]
[351585219,1738647046403,-1130.05,8.798e-05,2]
[351585220,1738647046413,-1780.47,8.798e-05,2]
[351585221,1738647046423,-500.0,8.798e-05,2]
[351585222,1738647046434,-500.0,8.798e-05,2]
[351585223,1738647046445,-500.0,8.798e-05,2]
[351585224,1738647046455,-1870.64,8.798e-05,2]
[351585225,1738647046467,-500.0,8.798e-05,2]
[351585226,1738647046477,-573.61,8.798e-05,2]
[351585227,1738647046489,-500.0,8.798e-05,2]
[351585228,1738647046499,-500.0,8.798e-05,2]
[351585229,1738647046509,-500.0,8.798e-05,2]
[351585230,1738647046518,-500.0,8.798e-05,2]
[351585231,1738647046703,-1101.55,8.798e-05,2]
[351585232,1738647046716,-628.51,8.798e-05,2]
[351585233,1738647046726,-500.0,8.798e-05,2]
[351585234,1738647046736,-500.0,8.798e-05,2]
[351585235,1738647046746,-500.0,8.798e-05,2]
[351585236,1738647046756,-500.0,8.798e-05,2]
[351585237,1738647046766,-624.87471913,8.798e-05,2]
[351585238,1738647046775,-500.0,8.798e-05,2]
[351585239,1738647046785,-500.0,8.798e-05,2]
[351585240,1738647046795,-1112.43862702,8.798e-05,2]
[351585241,1738647046812,-474.32137298,8.798e-05,2]
[351585242,1738647046822,-500.0,8.798e-05,2]
[351585243,1738647046831,-11.82378702,8.798e-05,2]
[351585244,1738647046843,-305.01,8.798e-05,2]
[351585245,1738647047278,-500.0,8.795e-05,2]
[351585246,1738647047287,-1088.06621298,8.798e-05,2]
[351585247,1738647047296,-500.0,8.798e-05,2]
[351585248,1738647047305,-595.15586988,8.798e-05,2]
[351585249,1738647047314,-427.57369976,8.798e-05,2]
[351585250,1738647047325,-72.42630024,8.798e-05,2]
[351585251,1738647047335,-500.0,8.798e-05,2]
[351585252,1738647047343,-2506.07,8.798e-05,2]
[351585253,1738647047352,-1277.68,8.798e-05,2]
[351585254,1738647047361,-500.0,8.798e-05,2]
[351585255,1738647047371,-500.0,8.798e-05,2]
[351585256,1738647047384,-500.0,8.798e-05,2]
[351585257,1738647047393,-873.28,8.798e-05,2]
[351585258,1738647047402,-500.0,8.798e-05,2]
[351585259,1738647047413,-500.0,8.798e-05,2]
[351585260,1738647047422,-375.31903371,8.798e-05,2]
[351585261,1738647047433,-500.0,8.798e-05,2]
[351585262,1738647047449,-501.49752042,8.798e-05,2]
[351585263,1738647047460,-500.0,8.798e-05,2]
[351585264,1738647047469,-500.0,8.798e-05,2]
[351585265,1738647047479,-500.0,8.798e-05,2]
[351585266,1738647047489,-784.64,8.798e-05,2]
[351585267,1738647047499,-1713.93,8.798e-05,2]
[351585268,1738647047508,-500.0,8.798e-05,2]
[351585269,1738647047518,-500.0,8.798e-05,2]
[351585270,1738647047527,-500.0,8.798e-05,2]
[351585271,1738647047536,-500.0,8.798e-05,2]
[351585272,1738647047546,-500.0,8.798e-05,2]
[351585273,1738647047555,-500.0,8.798e-05,2]
[351585274,1738647047565,-500.0,8.798e-05,2]
[351585275,1738647047575,-500.0,8.798e-05,2]
[351585276,1738647047584,-804.51,8.798e-05,2]
[351585277,1738647047594,-500.0,8.798e-05,2]
[351585278,1738647047603,-500.0,8.798e-05,2]
[351585279,1738647047612,-526.03,8.798e-05,2]
[351585280,1738647047622,-941.2,8.798e-05,2]
[351585281,1738647047636,-500.0,8.798e-05,2]
[351585282,1738647047645,-500.0,8.798e-05,2]
[351585283,1738647047655,-500.0,8.798e-05,2]
[351585284,1738647047665,-500.0,8.798e-05,2]
[351585285,1738647047674,-503.64282933,8.798e-05,2]
[351585286,1738647047684,-914.84,8.798e-05,2]
[351585287,1738647047694,-500.0,8.798e-05,2]
[351585288,1738647047704,-500.0,8.798e-05,2]
[351585289,1738647047714,-514.48976956,8.798e-05,2]
[351585290,1738647047724,-1145.11,8.798e-05,2]
[351585291,1738647047734,-500.0,8.798e-05,2]
[351585292,1738647047743,-250.2579487,8.798e-05,2]
[351585293,1738647047753,-592.6747528,8.798e-05,2]
[351585294,1738647047763,-572.9,8.798e-05,2]
[351585295,1738647047773,-155.25711695,8.798e-05,2]
[351585296,1738647047782,-616.14,8.798e-05,2]
[351585297,1738647047792,-2176.09,8.798e-05,2]
[351585298,1738647047801,-500.0,8.798e-05,2]
[351585299,1738647047810,-500.0,8.798e-05,2]
[351585300,1738647047819,-500.0,8.798e-05,2]
[351585301,1738647047829,-500.0,8.798e-05,2]
[351585302,1738647047838,-2182.22,8.798e-05,2]
[351585303,1738647047847,-1652.56,8.798e-05,2]
[351585304,1738647047857,-2255.15,8.798e-05,2]
[351585305,1738647047867,-500.0,8.798e-05,2]
[351585306,1738647047880,-500.0,8.798e-05,2]
[351585307,1738647047890,-3360.17,8.798e-05,2]
[351585308,1738647047900,-658.92,8.798e-05,2]
[351585309,1738647047909,-500.0,8.798e-05,2]
[351585310,1738647047919,-500.0,8.798e-05,2]
[351585311,1738647047929,-500.0,8.798e-05,2]
[351585312,1738647047939,-500.0,8.798e-05,2]
[351585313,1738647047948,-1318.99,8.798e-05,2]
[351585314,1738647047957,-500.0,8.798e-05,2]
[351585315,1738647047967,-296.23330875,8.798e-05,2]
[351585316,1738647047976,-500.0,8.798e-05,2]
[351585317,1738647047985,-387.77141956,8.798e-05,2]
[351585318,1738647047997,-412.0,8.798e-05,2]
[351585319,1738647048017,-183.72858044,8.798e-05,2]
[351585320,1738647048027,-500.0,8.798e-05,2]
[351585321,1738647048037,-763.93,8.798e-05,2]
[351585322,1738647048046,-500.0,8.798e-05,2]
[351585323,1738647048056,-521.34141956,8.798e-05,2]
[351585324,1738647048068,-102.44858044,8.798e-05,2]
[351585325,1738647048078,-500.0,8.798e-05,2]
[351585326,1738647048088,-500.0,8.798e-05,2]
[351585327,1738647048097,-382.62168747,8.798e-05,2]
[351585328,1738647048138,-117.37831253,8.798e-05,2]
[351585329,1738647048149,-807.78952602,8.798e-05,2]
[351585330,1738647048161,-31.04047398,8.798e-05,2]
[351585331,1738647048170,-500.0,8.798e-05,2]
[351585332,1738647048180,-1050.31,8.798e-05,2]
[351585333,1738647048190,-500.0,8.798e-05,2]
[351585334,1738647048200,-231.55938741,8.798e-05,2]
[351585335,1738647048212,-268.44061259,8.798e-05,2]
[351585336,1738647048222,-500.0,8.798e-05,2]
[351585337,1738647048231,-500.0,8.798e-05,2]
[351585338,1738647048241,-690.93,8.798e-05,2]
[351585339,1738647048251,-500.0,8.798e-05,2]
[351585340,1738647048261,-347.33868185,8.798e-05,2]
[351585341,1738647049450,-400.0,8.791e-05,2]
[351585342,1738647049470,-353.514,8.791e-05,2]
[351585343,1738647049486,-59.016,8.795e-05,2]
[351585344,1738647049497,-440.984,8.795e-05,2]
[351585345,1738647049508,-500.0,8.795e-05,2]
[351585346,1738647049517,-46.416,8.795e-05,2]
[351585347,1738647049606,-453.584,8.795e-05,2]
[351585348,1738647049616,-83.9104255,8.795e-05,2]
[351585349,1738647049733,-416.0895745,8.795e-05,2]
[351585350,1738647049743,-500.0,8.797e-05,2]
[351585351,1738647049753,-152.66131815,8.798e-05,2]
[351585352,1738647049763,-1125.08,8.798e-05,2]
[351585353,1738647049772,-500.0,8.798e-05,2]
[351585354,1738647049782,-393.30782543,8.798e-05,2]
[351585355,1738647049810,-106.69217457,8.798e-05,2]
[351585356,1738647049820,-662.89207739,8.798e-05,2]
[351585357,1738647049832,-370.03792261,8.798e-05,2]
[351585358,1738647049842,-151.0,8.798e-05,2]
[351585359,1738647049851,-151.0,8.798e-05,2]
[351585360,1738647049861,-151.0,8.798e-05,2]
[351585361,1738647049871,-500.0,8.798e-05,2]
[351585362,1738647049884,-137.42972665,8.798e-05,2]
[351585363,1738647049896,-362.57027335,8.798e-05,2]
[351585364,1738647049905,-500.0,8.798e-05,2]
[351585365,1738647049915,-500.0,8.798e-05,2]
[351585366,1738647049923,-147.11734709,8.798e-05,2]
[351585367,1738647049945,-352.88265291,8.798e-05,2]
[351585368,1738647049955,-585.6,8.798e-05,2]
[351585369,1738647049965,-500.0,8.798e-05,2]
[351585370,1738647049974,-500.0,8.798e-05,2]
[351585371,1738647049984,-500.0,8.798e-05,2]
[351585372,1738647049993,-500.0,8.798e-05,2]
[351585373,1738647050003,-500.0,8.798e-05,2]
[351585374,1738647050015,-500.0,8.798e-05,2]
[351585375,1738647050025,-500.0,8.798e-05,2]